bitfinex-derivatives/quotes_SOLF0:USTF0_20250609
["timestamp","ask_amount","ask_price","bid_price","bid_amount"]
[1749488016881,0.04208333,155.9,155.87,35.06]
[1749488017580,6.4119,155.88,155.86,7.64699394]
[1749488017780,6.4119,155.88,155.85,7.64699394]
[1749488018083,11.64057497,155.87,155.84,34.68]
[1749488018288,6.4123,155.87,155.84,42.32699394]
[1749488018788,6.4127,155.86,155.84,42.32699394]
[1749488019082,0.04530301,155.87,155.81,34.68]
[1749488019280,7.64699394,155.85,155.78,7.64699394]
[1749488019478,0.04234099,155.83,155.78,7.64699394]
[1749488019679,5.2324696,155.82,155.77,6.4159]
[1749488019877,5.2324696,155.81,155.77,14.06289394]
[1749488020077,0.04234099,155.83,155.77,14.06289394]
[1749488020282,5.23445056,155.82,155.77,7.64699394]
[1749488020582,0.04234099,155.83,155.77,7.64699394]
[1749488020781,0.04234099,155.83,155.81,7.64699394]
[1749488020982,0.04234099,155.83,155.76,34.68]
[1749488021183,0.04234099,155.83,155.8,7.64699394]
[1749488021373,0.04234099,155.83,155.8,14.06159394]
[1749488021577,0.04234099,155.83,155.8,7.64699394]
[1749488021778,0.04234099,155.83,155.81,6.4143]
[1749488021982,0.04234099,155.83,155.76,42.32699394]
[1749488022184,0.04234099,155.83,155.79,7.64699394]
[1749488022383,0.04234099,155.83,155.8,6.4148]
[1749488022987,0.04234099,155.83,155.79,6.4151]
[1749488023280,7.64699394,155.8,155.73,7.64699394]
[1749488023486,7.64699394,155.8,155.69,403.92]
[1749488023487,0.04820723,155.78,155.69,403.92]
[1749488023880,0.04820723,155.78,155.73,7.64699394]
[1749488024186,0.04820723,155.78,155.75,6.4167]
[1749488024982,0.04820723,155.78,155.74,6.4173]
[1749488025285,0.04820723,155.78,155.73,34.68]
[1749488025881,0.04820723,155.78,155.74,7.64699394]
[1749488026985,0.04820723,155.78,155.75,6.4167]
[1749488027185,0.04820723,155.78,155.74,7.64699394]
[1749488027988,0.04820723,155.78,155.73,34.68]
[1749488028187,0.04820723,155.78,155.74,7.64699394]
[1749488028385,0.04820723,155.78,155.73,34.68]
[1749488028581,7.69520117,155.78,155.73,34.68]
[1749488028788,7.69520117,155.78,155.7,34.7]
[1749488028988,7.69520117,155.78,155.72,7.64699394]
[1749488029185,6.4169,155.76,155.72,14.06499394]
[1749488029383,0.04820723,155.78,155.72,7.64699394]
[1749488029688,6.4164,155.77,155.72,7.64699394]
[1749488029889,0.04820723,155.78,155.72,7.64699394]
[1749488030089,0.04820723,155.78,155.7,34.7]
[1749488030295,0.04820723,155.78,155.71,7.64699394]
[1749488030889,6.4169,155.76,155.73,7.64699394]
[1749488031191,0.04820723,155.78,155.73,7.64699394]
[1749488031388,6.46420723,155.78,155.74,7.64699394]
[1749488031592,0.04820723,155.78,155.74,7.64699394]
[1749488032092,0.04820723,155.78,155.73,7.64699394]
[1749488032289,0.04820723,155.78,155.7,34.7]
[1749488032290,7.64699394,155.77,155.7,42.34699394]
[1749488032496,0.04820723,155.78,155.7,42.34699394]
[1749488032994,0.04820723,155.78,155.71,7.64699394]
[1749488034191,0.04820723,155.78,155.7,41.119]
[1749488034396,0.04820723,155.78,155.72,7.64699394]
[1749488034586,6.4176,155.74,155.72,7.64699394]
[1749488035592,6.4178,155.73,155.72,7.64699394]
[1749488035893,6.4178,155.73,155.71,7.64699394]
[1749488036895,34.70484743,155.75,155.65,36.1995]
[1749488037193,0.04210174,155.72,155.67,7.64699394]
[1749488037398,0.04210174,155.72,155.67,14.06699394]
[1749488037899,0.04210174,155.72,155.65,36.1995]
[1749488037900,0.04210174,155.72,155.68,7.64699394]
[1749488038200,0.04210174,155.72,155.65,36.1995]
[1749488038498,0.04210174,155.72,155.65,34.66]
[1749488038694,0.04210174,155.72,155.67,7.64699394]
[1749488039486,6.4189,155.71,155.67,14.06709394]
[1749488039795,0.04210174,155.72,155.65,34.66]
[1749488039991,6.4193,155.7,155.66,14.06749394]
[1749488040192,0.04210174,155.72,155.66,7.64699394]
[1749488040392,0.04210174,155.72,155.65,34.66]
[1749488040599,6.4195,155.69,155.65,48.72779394]
[1749488040893,0.04210174,155.72,155.65,34.66]
[1749488041296,6.4197,155.69,155.65,34.66]
[1749488041503,0.04210174,155.72,155.66,7.64699394]
[1749488041795,6.4196,155.69,155.65,41.0808]
[1749488042001,7.68909568,155.72,155.65,42.30699394]
[1749488042197,7.68909568,155.72,155.65,34.66]
[1749488042396,7.68909568,155.72,155.65,48.72799394]
[1749488042598,7.68909568,155.72,155.65,42.30699394]
[1749488042804,6.4194,155.7,155.65,48.72789394]
[1749488043002,7.68909568,155.72,155.65,48.72789394]
[1749488043401,6.4197,155.69,155.65,48.72789394]
[1749488043601,7.64699394,155.7,155.65,34.66]
[1749488043798,7.68909568,155.72,155.65,42.30699394]
[1749488045006,6.4199,155.68,155.65,42.30699394]
[1749488045306,0.04672162,155.68,155.65,42.30699394]
[1749488045800,0.04672162,155.68,155.65,48.72799394]
[1749488046207,6.46682162,155.68,155.65,42.30699394]
[1749488047005,6.46682162,155.68,155.65,48.72789394]
[1749488047209,0.04672162,155.68,155.65,48.72789394]
[1749488047806,0.04672162,155.68,155.65,42.30699394]
[1749488048404,0.04672162,155.68,155.65,34.66]
[1749488050305,0.04672162,155.68,155.66,6.4206]
[1749488050610,0.04672162,155.68,155.66,7.64699394]
[1749488051008,0.04672162,155.68,155.67,6.4202]
[1749488053100,0.04672162,155.68,155.67,14.06719394]
[1749488054207,34.68,155.78,155.67,15.29398788]
[1749488054411,34.68,155.78,155.72,7.64699394]
[1749488055112,6.4174,155.74,155.73,0.04490288]
[1749488056806,0.04632209,155.77,155.73,0.04490288]
[1749488057315,6.4172,155.74,155.73,0.04490288]
[1749488057514,0.04632209,155.77,155.73,0.04490288]
[1749488057710,0.04632209,155.77,155.75,7.64699394]
[1749488058513,6.46242209,155.77,155.75,7.64699394]
[1749488059222,0.04632209,155.77,155.75,7.64699394]
[1749488059810,6.46242209,155.77,155.76,7.64699394]
[1749488061215,0.04632209,155.77,155.76,7.64699394]
[1749488062815,0.04632209,155.77,155.76,14.06339394]
[1749488063206,0.04632209,155.77,155.76,7.64699394]
[1749488064316,0.04632209,155.77,155.76,14.06339394]
[1749488068018,0.04632209,155.77,155.76,7.64699394]
[1749488068522,6.46222209,155.77,155.76,7.64699394]
[1749488069412,0.04632209,155.77,155.76,7.64699394]
[1749488070713,0.04632209,155.77,155.76,14.06329394]
[1749488071515,5.18825884,155.82,155.79,6.4151]
[1749488071717,223.81781508,155.83,155.8,7.64699394]
[1749488071913,6.4137,155.83,155.82,7.64699394]
[1749488072120,5.1873733,155.85,155.82,7.64699394]
[1749488072328,35.52,155.88,155.82,7.64699394]
[1749488072621,35.52,155.88,155.84,7.64699394]
[1749488072622,5.23478637,155.87,155.84,7.64699394]
[1749488073017,0.04691558,155.87,155.84,7.64699394]
[1749488073220,6.4126,155.85,155.84,7.64699394]
[1749488074922,6.413,155.84,155.83,0.04836941]
[1749488083121,6.413,155.84,155.83,7.69536335]
[1749488083520,6.4128,155.85,155.83,7.69536335]
[1749488084333,0.04691558,155.87,155.83,7.69536335]
[1749488085232,6.4129,155.85,155.83,7.69536335]
[1749488085433,0.04691558,155.87,155.83,14.10876335]
[1749488085737,6.4124,155.86,155.85,7.64699394]
[1749488086336,0.04691558,155.87,155.85,7.64699394]
[1749488086728,0.04691558,155.87,155.85,14.05939394]
[1749488086929,0.04691558,155.87,155.85,7.64699394]
[1749488087630,0.04691558,155.87,155.86,6.4122]
[1749488087834,21.64699394,155.94,155.85,7.64699394]
[1749488087835,35.52,155.95,155.85,7.64699394]
[1749488088138,6.4108,155.9,155.84,9.90659394]
[1749488088335,6.4108,155.9,155.84,2.2596]
[1749488088537,6.4108,155.9,155.88,7.64699394]
[1749488088838,6.45103944,155.91,155.88,7.64699394]
[1749488089038,0.04073944,155.91,155.9,7.64699394]
[1749488089537,0.04073944,155.91,155.87,35.56426532]
[1749488089732,0.04073944,155.91,155.89,7.64699394]
[1749488090129,6.4106,155.9,155.89,7.64699394]
[1749488090530,0.04073944,155.91,155.87,43.21125926]
[1749488090730,0.04073944,155.91,155.87,35.56426532]
[1749488091338,0.04073944,155.91,155.87,0.04426532]
[1749488091833,6.4114,155.88,155.87,0.04426532]
[1749488094936,7.64699394,155.89,155.81,35.54]
[1749488095131,9.80389394,155.89,155.81,35.54]
[1749488095342,6.4139,155.82,155.81,43.18699394]
[1749488095636,6.4139,155.82,155.81,35.54]
[1749488095937,0.04902772,155.83,155.81,43.18699394]
[1749488096134,0.04189492,155.84,155.81,43.18699394]
[1749488096334,0.04189492,155.84,155.83,7.64699394]
[1749488096936,6.45489492,155.84,155.83,7.64699394]
[1749488097936,0.04189492,155.84,155.83,7.64699394]
[1749488101038,0.04189492,155.84,155.83,14.06049394]
[1749488101239,0.04189492,155.84,155.81,35.54]
[1749488101441,0.04189492,155.84,155.82,7.64699394]
[1749488102140,0.04189492,155.84,155.82,14.06069394]
[1749488102344,6.4135,155.83,155.82,7.64699394]
[1749488102638,6.4135,155.83,155.81,35.54]
[1749488103741,6.4139,155.82,155.81,35.54]
[1749488104141,0.04189492,155.84,155.81,35.54]
[1749488104443,6.4137,155.83,155.81,35.54]
[1749488105847,6.4139,155.82,155.81,35.54]
[1749488106246,0.04189492,155.84,155.81,35.54]
[1749488106649,6.4137,155.83,155.81,35.54]
[1749488107847,6.45509492,155.84,155.81,41.9542]
[1749488108047,6.45509492,155.84,155.82,7.64699394]
[1749488108250,0.04189492,155.84,155.82,7.64699394]
[1749488108450,0.04189492,155.84,155.82,14.06069394]
[1749488108651,0.04189492,155.84,155.82,7.64699394]
[1749488109450,6.45519492,155.84,155.82,7.64699394]
[1749488109951,0.04189492,155.84,155.82,14.06079394]
[1749488110249,0.04189492,155.84,155.82,7.64699394]
[1749488111052,6.45519492,155.84,155.82,7.64699394]
[1749488112454,0.04189492,155.84,155.82,14.06089394]
[1749488113151,6.4135,155.83,155.81,35.54]
[1749488113454,0.04189492,155.84,155.82,7.64699394]
[1749488114156,6.45519492,155.84,155.82,7.64699394]
[1749488115250,6.45519492,155.84,155.81,41.954]
[1749488115554,6.45519492,155.84,155.81,49.60099394]
[1749488115755,0.04189492,155.84,155.81,43.18699394]
[1749488116249,6.4139,155.82,155.81,43.18699394]
[1749488119356,6.4139,155.82,155.81,35.54]
[1749488120352,6.4143,155.81,155.8,0.04570855]
[1749488121053,6.416,155.77,155.74,35.54]
[1749488121249,7.68888886,155.84,155.74,35.54]
[1749488121250,7.64699394,155.8,155.74,35.54]
[1749488121558,6.4161,155.77,155.74,41.9571]
[1749488121756,7.64699394,155.82,155.75,7.64699394]
[1749488121956,0.04536597,155.8,155.77,0.04746115]
[1749488122649,6.4158,155.78,155.77,0.04746115]
[1749488126658,0.04536597,155.8,155.77,0.04746115]
[1749488126856,16.2177,155.86,155.79,7.64699394]
[1749488127064,6.4132,155.84,155.82,7.64699394]
[1749488127360,4.2795,155.88,155.82,7.64699394]
[1749488127568,5.20752834,155.87,155.82,14.06069394]
[1749488128050,0.04664622,155.86,155.83,0.04039042]
[1749488129156,6.413,155.84,155.83,0.04039042]
[1749488130667,6.4128,155.85,155.83,0.04039042]
[1749488132065,6.4131,155.84,155.83,0.04039042]
[1749488132459,7.64699394,155.85,155.75,6.4165]
[1749488132759,6.4157,155.78,155.74,7.64699394]
[1749488133157,6.4162,155.77,155.73,375.8374]
[1749488133360,6.4162,155.77,155.73,383.48439394]
[1749488133559,6.46301129,155.77,155.73,377.10834966]
[1749488134060,0.04681129,155.77,155.74,6.4171]
[1749488134261,0.04681129,155.77,155.74,7.64699394]
[1749488134765,0.04681129,155.77,155.74,14.06399394]
[1749488135264,0.04681129,155.77,155.75,6.4167]
[1749488137168,0.04681129,155.77,155.74,14.06399394]
[1749488137468,0.04681129,155.77,155.74,7.64699394]
[1749488137873,0.04681129,155.77,155.75,6.4165]
[1749488138074,0.04681129,155.77,155.74,7.64699394]
[1749488138567,0.04681129,155.77,155.75,6.4164]
[1749488140171,0.04681129,155.77,155.76,6.4163]
[1749488140467,1.129e-05,155.77,155.76,48.82329394]
[1749488140667,2.2028,155.85,155.81,6.414]
[1749488140873,5.23177531,155.86,155.81,7.64699394]
[1749488141171,14.0,155.87,155.81,7.64699394]
[1749488141667,0.04734767,155.86,155.82,0.04541554]
[1749488142676,6.45984767,155.86,155.83,6.4133]
[1749488144676,6.4127,155.85,155.82,6.45911554]
[1749488144877,6.4127,155.85,155.82,0.04541554]
[1749488145175,6.4127,155.85,155.82,6.45911554]
[1749488146076,6.4127,155.85,155.82,0.04541554]
[1749488146577,6.4131,155.84,155.82,0.04541554]
[1749488147574,6.4135,155.83,155.82,0.04541554]
[1749488147775,11.68691799,155.83,155.82,0.04541554]
[1749488148078,6.4154,155.79,155.77,34.74]
[1749488148673,6.4155,155.78,155.77,34.74]
[1749488149074,0.04798252,155.79,155.77,34.74]
[1749488149278,0.04798252,155.79,155.77,42.38699394]
[1749488150475,0.04798252,155.79,155.78,6.4155]
[1749488151580,2.2239,155.84,155.81,6.414]
[1749488151781,2.1521,155.88,155.81,34.74]
[1749488151983,2.1521,155.88,155.82,7.64699394]
[1749488151984,5.27738008,155.87,155.82,7.64699394]
[1749488152179,5.27738008,155.86,155.81,34.74]
[1749488152381,9.79909394,155.88,155.82,14.06069394]
[1749488152578,7.64699394,155.86,155.81,34.74]
[1749488152775,7.64699394,155.84,155.83,0.0437961]
[1749488152971,12.91882659,155.84,155.78,34.74]
[1749488153175,7.64699394,155.82,155.78,34.74]
[1749488153777,5.26226992,155.81,155.78,34.74]
[1749488153980,5.30636462,155.81,155.78,34.7862734]
[1749488154182,6.4147,155.8,155.78,34.7862734]
[1749488155085,6.4151,155.79,155.78,34.7862734]
[1749488155588,6.4148,155.8,155.78,34.7862734]
[1749488155880,0.0440947,155.81,155.78,34.7862734]
[1749488156285,6.4151,155.8,155.78,34.7862734]
[1749488156483,7.69108864,155.81,155.78,0.0462734]
[1749488156883,6.4151,155.79,155.78,0.0462734]
[1749488157888,6.4148,155.8,155.78,0.0462734]
[1749488158488,6.4151,155.79,155.78,0.0462734]
[1749488161784,7.69108864,155.81,155.78,0.0462734]
[1749488161983,0.0440947,155.81,155.78,7.69326734]
[1749488162181,0.0440947,155.81,155.79,6.4149]
[1749488162795,0.0440947,155.81,155.78,34.6462734]
[1749488163191,7.69108864,155.81,155.78,0.0462734]
[1749488163487,7.69108864,155.81,155.74,34.6]
[1749488163789,7.69108864,155.81,155.72,7.64699394]
[1749488163790,7.64699394,155.79,155.72,7.64699394]
[1749488163992,6.4171,155.75,155.71,41.0182]
[1749488164186,7.64699394,155.77,155.71,34.6]
[1749488164587,0.04414582,155.76,155.71,34.6]
[1749488164786,6.417,155.75,155.72,6.4177]
[1749488165492,6.4172,155.74,155.71,41.0182]
[1749488166585,2.27334582,155.76,155.71,34.6]
[1749488166791,6.4177,155.73,155.71,34.6]
[1749488167093,4.44354582,155.76,155.69,7.64699394]
[1749488167392,7.64699394,155.75,155.68,34.6]
[1749488167595,7.64699394,155.75,155.68,42.24699394]
[1749488167992,4.44354582,155.76,155.7,7.64699394]
[1749488168291,4.44354582,155.76,155.7,14.06559394]
[1749488169193,9.69981841,155.76,155.7,14.06559394]
[1749488169400,4.44354582,155.76,155.7,14.06559394]
[1749488169898,9.70200357,155.76,155.71,6.4184]
[1749488170098,4.44354582,155.76,155.71,6.4184]
[1749488170304,4.44354582,155.76,155.7,7.64699394]
[1749488170492,4.44354582,155.76,155.7,14.06549394]
[1749488170689,6.4174,155.74,155.7,14.06549394]
[1749488171090,4.44354582,155.76,155.7,14.06549394]
[1749488171593,6.4179,155.73,155.7,7.64699394]
[1749488172096,4.44354582,155.76,155.7,7.64699394]
[1749488172691,4.44354582,155.76,155.68,41.0195]
[1749488172889,6.4183,155.72,155.69,7.64699394]
[1749488173098,0.04481747,155.72,155.69,7.64699394]
[1749488173399,6.46291747,155.72,155.69,7.64699394]
[1749488173999,6.46291747,155.72,155.69,14.06619394]
[1749488174698,6.46291747,155.72,155.69,7.64699394]
[1749488176201,6.4185,155.71,155.69,7.64699394]
[1749488176401,6.4185,155.71,155.68,41.0195]
[1749488176701,6.4185,155.71,155.68,48.66649394]
[1749488178198,6.46291747,155.72,155.68,48.66649394]
[1749488179012,6.46291747,155.72,155.69,6.4192]
[1749488179704,6.46291747,155.72,155.68,48.66639394]
[1749488179906,6.4184,155.71,155.68,48.66639394]
[1749488180105,0.04481747,155.72,155.68,48.66639394]
[1749488180306,6.4185,155.71,155.68,48.66639394]
[1749488181101,6.46301747,155.72,155.69,6.4192]
[1749488182006,6.4185,155.71,155.68,48.66639394]
[1749488183304,6.4189,155.7,155.68,34.6]
[1749488183508,0.04481747,155.72,155.65,403.92]
[1749488183709,0.04481747,155.72,155.66,7.64699394]
[1749488183911,6.4194,155.69,155.66,14.06729394]
[1749488185007,6.4194,155.69,155.65,403.92]
[1749488185008,6.4199,155.68,155.65,410.3407]
[1749488185309,0.04261908,155.68,155.66,7.64699394]
[1749488186911,6.46231908,155.68,155.66,7.64699394]
[1749488187412,0.04261908,155.68,155.62,8.516]
[1749488187605,0.04261908,155.68,155.6,36.0755]
[1749488187810,0.04261908,155.68,155.64,7.64699394]
[1749488188010,0.04261908,155.68,155.66,7.64699394]
[1749488189113,6.46251908,155.68,155.66,7.64699394]
[1749488189321,0.04261908,155.68,155.66,7.64699394]
[1749488190113,0.04261908,155.68,155.54,382.5504]
[1749488190314,0.04228279,155.65,155.61,7.64699394]
[1749488190909,0.04228279,155.65,155.61,14.06929394]
[1749488191115,0.04228279,155.65,155.6,34.4]
[1749488191314,6.4229,155.61,155.57,48.47099394]
[1749488191612,6.4229,155.61,155.59,7.64699394]
[1749488191613,0.04087074,155.61,155.59,7.64699394]
[1749488191811,0.04087074,155.61,155.59,14.07019394]
[1749488192414,0.04087074,155.61,155.59,7.64699394]
[1749488192911,0.04087074,155.61,155.59,14.07009394]
[1749488193116,0.04087074,155.61,155.57,34.4]
[1749488194216,6.4231,155.6,155.57,34.4]
[1749488194511,0.04087074,155.61,155.47,11.89187178]
[1749488194712,0.04087074,155.61,155.55,7.64699394]
[1749488194713,0.04911412,155.56,155.55,7.64699394]
[1749488194913,0.0429185,155.57,155.54,34.42]
[1749488195212,0.04223796,155.57,155.53,42.06699394]
[1749488195517,0.04223796,155.57,155.54,6.4253]
[1749488195816,0.04223796,155.57,155.53,34.42]
[1749488196712,7.64699394,155.56,155.5,34.42]
[1749488196909,0.04223796,155.57,155.51,7.64699394]
[1749488197517,6.425,155.56,155.52,6.4259]
[1749488198116,6.425,155.56,155.5,34.42]
[1749488198117,6.4255,155.54,155.5,34.42]
[1749488198318,6.47181532,155.54,155.5,34.42]
[1749488198616,6.47181532,155.54,155.5,40.8467]
[1749488198817,0.04631532,155.54,155.51,7.64699394]
[1749488199013,0.04631532,155.54,155.53,6.4258]
[1749488200012,0.04631532,155.54,155.52,6.4261]
[1749488200213,0.04631532,155.54,155.51,7.64699394]
[1749488200414,0.04631532,155.54,155.52,6.4262]
[1749488200610,0.04631532,155.54,155.51,7.64699394]
[1749488201015,0.04631532,155.54,155.53,6.4258]
[1749488203118,0.04631532,155.54,155.53,14.07279394]
[1749488204124,0.04631532,155.54,155.53,6.4258]
[1749488206819,0.04631532,155.54,155.52,7.64699394]
[1749488207019,7.64699394,155.61,155.52,7.64699394]
[1749488207318,7.64699394,155.61,155.56,6.4245]
[1749488207518,7.64699394,155.61,155.55,7.64699394]
[1749488208122,0.04856967,155.6,155.56,0.04797112]
[1749488208629,6.47176967,155.6,155.56,6.47237112]
[1749488208817,6.47176967,155.6,155.56,0.04797112]
[1749488209021,0.04856967,155.6,155.56,0.04797112]
[1749488209222,6.47156967,155.6,155.57,6.4241]
[1749488209421,6.47156967,155.6,155.56,0.04797112]
[1749488209922,6.47156967,155.6,155.56,6.47247112]
[1749488213121,0.04856967,155.6,155.56,0.04797112]
[1749488213329,0.04856967,155.6,155.57,7.64699394]
[1749488213828,0.04856967,155.6,155.57,14.07089394]
[1749488214028,0.04856967,155.6,155.57,7.64699394]
[1749488214621,0.04856967,155.6,155.58,6.4238]
[1749488214926,0.04856967,155.6,155.57,7.64699394]
[1749488215126,0.04856967,155.6,155.59,6.4234]
[1749488216325,0.04856967,155.6,155.58,40.8236]
[1749488217528,0.04856967,155.6,155.58,34.4]
[1749488218028,0.04856967,155.6,155.58,40.8236]
[1749488218328,0.04856967,155.6,155.58,34.4]
[1749488220527,6.47156967,155.6,155.58,34.4]
[1749488221130,0.04856967,155.6,155.58,34.4]
[1749488222635,6.47156967,155.6,155.58,34.4]
[1749488224037,6.4234,155.59,155.56,7.69496506]
[1749488225328,6.4234,155.59,155.56,0.04797112]
[1749488225836,7.64699394,155.59,155.56,0.04797112]
[1749488226330,6.4242,155.57,155.56,0.04797112]
[1749488226535,7.64699394,155.57,155.52,34.4]
[1749488227130,7.64699394,155.57,155.52,40.826]
[1749488227534,6.46655381,155.56,155.52,40.826]
[1749488227735,0.04165381,155.56,155.52,40.826]
[1749488228737,6.4251,155.55,155.52,40.826]
[1749488230132,6.4251,155.55,155.52,34.4]
[1749488231044,6.46645381,155.56,155.52,40.8259]
[1749488231239,52.9404,155.59,155.52,40.8259]
[1749488231240,52.9404,155.59,155.52,42.04699394]
[1749488231537,14.0,155.59,155.54,7.64699394]
[1749488231732,2.1846,155.6,155.54,7.64699394]
[1749488232337,2.1846,155.6,155.55,6.46553765]
[1749488232338,6.46577824,155.59,155.55,6.46553765]
[1749488232739,6.4238,155.58,155.55,6.46553765]
[1749488233138,0.04207824,155.59,155.55,0.04073765]
[1749488233537,6.4244,155.57,155.55,0.04073765]
[1749488234443,6.4246,155.56,155.55,0.04073765]
[1749488238443,6.4257,155.54,155.52,34.4]
[1749488238639,2.1846,155.6,155.52,49.69398788]
[1749488238943,5.17429821,155.61,155.59,7.64699394]
[1749488239132,16.2647,155.63,155.59,7.64699394]
[1749488239337,5.17424792,155.62,155.59,7.64699394]
[1749488239532,0.04727771,155.62,155.59,7.64699394]
[1749488239738,0.04727771,155.62,155.61,7.64699394]
[1749488241843,0.04727771,155.62,155.61,14.06949394]
[1749488242435,0.04727771,155.62,155.61,7.64699394]
[1749488244038,0.04727771,155.62,155.6,34.4]
[1749488244444,6.46947771,155.62,155.6,34.4]
[1749488244845,0.04727771,155.62,155.6,34.4]
[1749488246644,6.46947771,155.62,155.6,34.4]
[1749488247048,0.04727771,155.62,155.6,34.4]
[1749488248348,0.04727771,155.62,155.6,40.8226]
[1749488249049,0.04727771,155.62,155.61,6.4225]
[1749488249350,0.04727771,155.62,155.6,42.04699394]
[1749488249550,0.04727771,155.62,155.6,48.46969394]
[1749488250751,14.0,155.66,155.6,49.69398788]
[1749488250945,221.77105174,155.69,155.65,7.64699394]
[1749488251151,226.11295174,155.69,155.65,7.64699394]
[1749488251350,219.69355174,155.69,155.65,7.64699394]
[1749488251746,6.42,155.68,155.65,7.69358858]
[1749488252348,226.15717832,155.69,155.65,14.11448858]
[1749488252956,6.4197,155.68,155.65,14.11448858]
[1749488253152,6.4197,155.68,155.65,7.69358858]
[1749488253655,6.4197,155.68,155.65,14.11438858]
[1749488253954,6.4197,155.68,155.65,6.46739464]
[1749488254155,6.4197,155.68,155.65,0.04659464]
[1749488255256,6.4204,155.67,155.65,0.04659464]
[1749488256362,6.4205,155.66,155.65,0.04659464]
[1749488257160,227.38477226,155.69,155.65,0.04659464]
[1749488257357,6.4202,155.67,155.65,0.04659464]
[1749488257557,219.73777832,155.69,155.65,0.04659464]
[1749488258058,0.04422658,155.69,155.65,0.04659464]
[1749488259249,0.04422658,155.69,155.67,7.64699394]
[1749488259454,0.04422658,155.69,155.68,6.4196]
[1749488259655,42.00699394,155.76,155.68,34.36]
[1749488259856,6.4179,155.73,155.69,7.64699394]
[1749488260352,6.4174,155.74,155.69,7.64699394]
[1749488260558,0.04088208,155.73,155.7,0.04480313]
[1749488260754,0.04088208,155.73,155.71,7.64699394]
[1749488260959,8.5953,155.78,155.72,34.34]
[1749488261161,6.4156,155.78,155.74,7.64699394]
[1749488261463,6.4156,155.78,155.74,14.06389394]
[1749488261860,0.04903664,155.78,155.74,7.69520455]
[1749488262162,0.04903664,155.78,155.75,6.4165]
[1749488262356,0.04903664,155.78,155.74,7.69520455]
[1749488262556,6.46483664,155.78,155.74,14.11220455]
[1749488262963,6.4162,155.77,155.74,7.69520455]
[1749488263162,0.04903664,155.78,155.74,7.69520455]
[1749488263365,0.04903664,155.78,155.74,0.04821061]
[1749488263862,6.4164,155.76,155.74,0.04821061]
[1749488264354,0.04903664,155.78,155.74,0.04821061]
[1749488264963,6.4168,155.75,155.74,0.04821061]
[1749488266067,6.4176,155.73,155.72,34.28821061]
[1749488271072,6.418,155.72,155.71,0.04628873]
[1749488272470,6.4201,155.67,155.66,404.16]
[1749488272871,7.64699394,155.72,155.66,404.16]
[1749488273575,0.0432877,155.71,155.67,0.04076562]
[1749488274174,6.4194,155.69,155.67,0.04076562]
[1749488274674,6.4196,155.68,155.67,0.04076562]
[1749488279872,6.4193,155.69,155.67,0.04076562]
[1749488280275,7.64699394,155.7,155.67,0.04076562]
[1749488280774,6.4192,155.69,155.67,0.04076562]
[1749488281176,6.4196,155.68,155.67,0.04076562]
[1749488281673,0.0432877,155.71,155.67,0.04076562]
[1749488281869,7.69028164,155.71,155.67,0.04076562]
[1749488282475,6.4195,155.69,155.67,0.04076562]
[1749488282770,7.69028164,155.71,155.67,0.04076562]
[1749488283684,6.4196,155.68,155.67,0.04076562]
[1749488286479,6.4207,155.66,155.63,40.7016]
[1749488286674,7.64699394,155.67,155.63,34.28]
[1749488286874,2.0952,155.69,155.63,34.28]
[1749488287074,6.4203,155.67,155.63,34.28]
[1749488287275,9.74219394,155.69,155.63,34.28]
[1749488287474,0.04191384,155.68,155.63,34.28]
[1749488287981,5.18101739,155.67,155.63,34.28]
[1749488288174,6.421,155.65,155.63,34.28]
[1749488288878,6.421,155.65,155.61,14.06929394]
[1749488288879,6.421,155.65,155.62,6.4221]
[1749488291780,6.421,155.65,155.61,6.4223]
[1749488291982,6.46903509,155.65,155.61,6.4223]
[1749488292586,6.4213,155.64,155.61,6.4223]
[1749488293378,0.04803509,155.65,155.6,48.34979394]
[1749488293777,0.04803509,155.65,155.6,40.7028]
[1749488293982,0.04803509,155.65,155.61,6.4224]
[1749488294181,0.04803509,155.65,155.6,41.92699394]
[1749488294686,6.4214,155.64,155.61,6.4223]
[1749488295180,6.4214,155.64,155.6,48.34969394]
[1749488295383,6.422,155.63,155.6,41.92699394]
[1749488296585,6.422,155.63,155.6,48.34969394]
[1749488296782,6.46903509,155.65,155.6,48.34969394]
[1749488296985,6.46903509,155.65,155.6,41.92699394]
[1749488297285,6.46903509,155.65,155.61,6.4223]
[1749488297788,6.46903509,155.65,155.62,6.4221]
[1749488297978,0.04803509,155.65,155.6,34.28]